Cogmind - Beta 13 @@@ ROGUE MODE // 2024.04.15 @ 11:06:18 Player: Darch Result: Destroyed by as-07791 with Assembled Heavy Rifle Performance ------------- Evolutions (0) 0 Regions Visited (2) 400 Robots Destroyed (17) 85 Value Destroyed (463) 463 Prototype IDs (0) 0 Alien Tech Used (0) 0 Bonus (0) 0 TOTAL SCORE: 948 Bonus ------- None Cogmind --------- Core Integrity 0/250 Matter 171/300 Energy 250/250 System Corruption 0% Temperature Cool (0) Movement Treading (240) Ox1 Location -10/Mines Parts ------- > --- POWER (1) -------- Ion Engine > --- PROPULSION (2) --- Light Treads Light Treads > --- UTILITY (2) ------ High-capacity Storage Unit Light Armor Plating > --- WEAPON (2) ------- Grenade Launcher Hammer > --- INVENTORY (20) --- Ion Engine Light Ion Engine Improved Ion Engine Light Treads Signal Interpreter Terrain Scanner ECM Suite Light Armor Plating Light Armor Plating Light Armor Plating Heavy Assault Rifle Peak State ------------ > --- POWER ------------ Ion Engine > --- PROPULSION ------- Light Treads Light Treads > --- UTILITY ---------- High-capacity Storage Unit Terrain Scan Processor > --- WEAPON ----------- Small Laser Grenade Launcher > --- INVENTORY -------- Signal Interpreter Terrain Scanner ECM Suite Light Armor Plating Light Armor Plating Light Armor Plating Light Armor Plating EM Pulse Gun Medium Laser Grenade Launcher [Rating: 9] Favorites ----------- Power Ion Engine Engine Ion Engine Propulsion Light Treads Treads Light Treads Utility High-capacity Storage Unit Storage High-capacity Storage Unit Processor Terrain Scan Processor Protection Light Armor Plating Weapon Small Laser Energy Gun Small Laser Launcher Grenade Launcher Impact Weapon Hammer Build | -11 -10 -10 ------- Run | Yrd Mat Min Slots Evolved . | . . . Power . | . . . Propulsion . | . . . Utility . | . . . Weapon . | . . . Parts Attached 13 | 6 5 2 Power 1 | 1 . . Engine 1 | 1 . . Core . | . . . Reactor . | . . . Propulsion 3 | 2 1 . Treads 3 | 2 1 . Leg . | . . . Wheel . | . . . Hover . | . . . Flight . | . . . Utility 4 | 1 3 . Device . | . . . Storage 2 | 1 1 . Processor 1 | . 1 . Hackware . | . . . Protection 1 | . 1 . Artifact . | . . . Weapon 5 | 2 1 2 Energy Gun 2 | 2 . . Energy Cannon . | . . . Ballistic Gun . | . . . Ballistic Cannon . | . . . Launcher 2 | . 1 1 Special Weapon . | . . . Impact Weapon 1 | . . 1 Slashing Weapon . | . . . Piercing Weapon . | . . . Special Melee Weapon . | . . . Unidentified Prototypes . | . . . Parts Lost 1 | . . 1 Power . | . . . Propulsion . | . . . Utility . | . . . Weapon 1 | . . 1 Highest Loss Streak 1 | . . 1 To Critical Strikes . | . . . Average Slot Usage (%) 95 | . 95 97 Engine 14 | . 14 14 Treads 27 | . 27 28 Storage 14 | . 14 14 Processor 5 | . 6 . Protection 5 | . 3 14 Energy Gun 16 | . 18 5 Launcher 9 | . 9 10 Impact Weapon 1 | . . 8 Naked Turns . | . . . Heaviest Build 53 | 13 52 53 Greatest Support 40 | 40 40 40 Greatest Overweight (x) 2 | . 2 1 Average Overweight (x) . | . . 1 Largest Inventory Capacity 20 | 8 20 20 Average Capacity 17 | 6 18 20 Most Carried 15 | 3 11 15 Average Carried 6 | 1 6 11 Final Capacity 20 | 8 20 20 Final Carried 11 | 1 11 11 Class Distribution -------------------- 100% | Mutant Dominant Class ---------------- Mutant | -10/Materials Mutant | -10/Mines Resources | -11 -10 -10 ----------- Run | Yrd Mat Min Matter Collected 414 | 226 116 72 Remotely . | . . . Salvage Created 408 | . 281 127 Parts 31 | . 26 5 Haulers Intercepted . | . . . Recyclers Shooed 1 | . 1 . Parts Field Recycled . | . . . Retrieved Matter . | . . . Parts Self-Destructed . | . . . Prevented . | . . . Kills | -11 -10 -10 ------- Run | Yrd Mat Min Combat Hostiles Destroyed 21 | . 10 11 AOE 21 | . 10 11 Classes Destroyed 7 | . 5 2 Worker 2 | . 2 . Builder 1 | . 1 . Watcher 2 | . 2 . Swarmer 3 | . 3 . Grunt 7 | . 7 . Sentry 2 | . . 2 Assembled 9 | . . 9 Best Kill Streak 9 | . 9 9 Combat Bots Only 9 | . 7 9 Max Kills in Single Turn 3 | . 2 3 Gunslinging . | . . . Exploded 3 | . 2 3 Melee . | . . . Uniques/NPCs Destroyed . | . . . Combat | -11 -10 -10 -------- Run | Yrd Mat Min Hostile Shots Fired 73 | . 48 25 Missed 27 | . 17 10 Damage Taken 719 | . 386 333 Core 258 | . 102 156 Absorbed by Shields . | . . . Core Remaining (%) 100 | 100 . . Volleys Fired 26 | . 16 10 Largest 2 | . 2 1 Hottest 80 | . 80 30 Shots Fired 28 | . 18 10 Gun 4 | . 4 . Cannon . | . . . Launcher 24 | . 14 10 Special . | . . . Kinetic . | . . . Thermal 2 | . 2 . Explosive 24 | . 14 10 Electromagnetic 2 | . 2 . Robot Hit Streak 5 | . 3 5 Robot Miss Streak 2 | . 2 1 Penetration Max . | . . . Secondary Targets . | . . . Shots Hit Robots 18 | . 10 8 Core Hits 47 | . 23 24 Critical Kills . | . . . Critical Parts Destroyed . | . . . Critical Strikes . | . . . Melee Attacks 1 | . . 1 Impact 1 | . . 1 Slashing . | . . . Piercing . | . . . Sneak Attacks . | . . . Combat Hostiles . | . . . Follow-up Attacks . | . . . Damage Inflicted 1441 | . 746 695 Guns 12 | . 12 . Cannons . | . . . Explosions 1398 | . 703 695 Melee . | . . . Ramming 31 | . 31 . Kinetic . | . . . Thermal . | . . . Explosive 1398 | . 703 695 Electromagnetic 12 | . 12 . Impact . | . . . Slashing . | . . . Piercing . | . . . Highest Corruption . | . . . Average Corruption . | . . . Corruption Purged . | . . . Corruption Blocked . | . . . Overload Shots . | . . . Overflow Damage 27 | . . 27 Projectiles . | . . . Explosions 27 | . . 27 Melee . | . . . Knockbacks . | . . . Impact . | . . . Kinetic . | . . . Secondary . | . . . Self-Inflicted Damage 169 | . 73 96 Shots 7 | . 3 4 Rammed 9 | . 9 . Targets Rammed 9 | . 9 . Kicked . | . . . Crushed . | . . . Highest Temperature 34 | . 18 34 Average Temperature 12 | . 6 19 Received Heat Transfer 177 | . 108 69 Siege Activations . | . . . Robots Corrupted . | . . . Combat Hostiles . | . . . Parts Fried . | . . . Impact Corruptions . | . . . Robots Melted . | . . . Combat Hostiles . | . . . Parts Melted . | . . . Heat Transferred . | . . . Parts Sabotaged . | . . . Parts Stolen . | . . . Parts Stripped . | . . . Power Chain Reactions . | . . . Alert | -11 -10 -10 ------- Run | Yrd Mat Min Peak Influence 352 | . 352 232 Initial 136 | . . 136 Average 55 | . 30 185 Maximum Alert Level 1 | . 1 1 Low Security (%) 96 | 100 96 92 Level 1 3 | . 3 7 Level 2 . | . . . Level 3 . | . . . Level 4 . | . . . Level 5 . | . . . High Security . | . . . Max Security . | . . . Squads Dispatched 2 | . 2 . Investigation . | . . . Extermination . | . . . Reinforcement 2 | . 2 . Assault . | . . . Garrison . | . . . Intercept . | . . . Searches Triggered . | . . . Construction Impeded . | . . . Haulers Reinforced . | . . . Active Scanning Responses . | . . . Cargo Convoy Interrupts . | . . . Stealth | -11 -10 -10 --------- Run | Yrd Mat Min Distress Signals 2 | . 2 . Communications Jammed . | . . . Distress Signals . | . . . Times Spotted 32 | . 15 17 Peak Tracking Total 8 | . 5 8 Tactical Retreats 2 | . 1 1 Traps | -11 -10 -10 ------- Run | Yrd Mat Min Traps Triggered 1 | . 1 . Indirectly . | . . . Trap Hack Attempts . | . . . Triggered . | . . . Disarmed . | . . . Reprogrammed . | . . . Reused . | . . . Traps Extracted . | . . . Installed . | . . . Triggered . | . . . Machines | -11 -10 -10 ---------- Run | Yrd Mat Min Machines Disabled 7 | . 5 2 Max in Single Turn 2 | . 2 2 Machines Repaired . | . . . Machines Dismantled . | . . . Machines Sabotaged . | . . . Overloaded Fab Kills . | . . . Hacking | -11 -10 -10 --------- Run | Yrd Mat Min Machines Accessed 3 | . 3 . Terminals 2 | . 2 . Fabricators . | . . . Repair Stations . | . . . Recycling Units 1 | . 1 . Scanalyzers . | . . . Garrison Access . | . . . Total Hacks 7 | . 7 . Successful 4 | . 4 . Failed 3 | . 3 . Catastrophic 1 | . 1 . Database Lockouts . | . . . Manual 3 | . 3 . Terminals 5 | . 5 . Fabricators . | . . . Repair Stations . | . . . Recycling Units 2 | . 2 . Scanalyzers . | . . . Garrison Access . | . . . Terminal Hacks 3 | . 3 . Dispatch Records 1 | . 1 . Hauler Manifests 1 | . 1 . Zone Layout 1 | . 1 . Fabricator Hacks . | . . . Repair Station Hacks . | . . . Recycling Unit Hacks 1 | . 1 . Report Inventory 1 | . 1 . Scanalyzer . | . . . Garrison Access Hacks . | . . . Unauthorized Hacks . | . . . Terminals . | . . . Fabricators . | . . . Repair Stations . | . . . Recycling Units . | . . . Scanalyzers . | . . . Garrison Access . | . . . Data Cores Recovered . | . . . Used . | . . . Hacking Detections 1 | . 1 . Full Trace Events . | . . . Feedback Events . | . . . Feedback Blocked . | . . . Robot Schematics Acquired . | . . . Robots Built . | . . . Authchips . | . . . Time . | . . . Total Robot Build Rating . | . . . Part Schematics Acquired . | . . . Parts Built . | . . . Authchips . | . . . Time . | . . . Total Part Build Rating . | . . . Parts Repaired . | . . . Time . | . . . Parts Recycled . | . . . Recycled Matter . | . . . Retrieved Matter . | . . . Retrieved Components . | . . . Parts Scanalyzed . | . . . Part Schematics Acquired . | . . . Parts Damaged . | . . . Bothacking | -11 -10 -10 ------------ Run | Yrd Mat Min Used RIF Installer . | . . . Robots Hacked . | . . . Non-combat . | . . . Combat . | . . . Robot Hacks Applied . | . . . Relay Couplers Released . | . . . Fabnet Peak Effective % . | . . . Robots Rewired . | . . . Allies Hacked . | . . . Hacks Repelled . | . . . Allies | -11 -10 -10 -------- Run | Yrd Mat Min Total Allies . | . . . Largest Group . | . . . Highest-Rated Group . | . . . Highest-Rated Ally . | . . . Total Orders . | . . . Ally Attacks . | . . . Total Damage . | . . . Kills . | . . . Allies Corrupted . | . . . Allies Melted . | . . . Intel | -11 -10 -10 ------- Run | Yrd Mat Min Robot Analysis Total . | . . . Derelict Logs Recovered . | . . . Drone Launches . | . . . Drone Recoveries . | . . . Exploration | -11 -10 -10 ------------- Run | Yrd Mat Min Turns Passed 1482 | 78 1153 251 Spaces Moved 620 | 46 482 92 Core 5 | 5 . . Treads 615 | 41 482 92 Legs . | . . . Wheels . | . . . Hover . | . . . Flight . | . . . Fastest Speed 50 | 50 160 240 Average Speed 220 | 148 224 240 Slowest Speed 320 | 160 320 240 Overloaded Moves . | . . . Propulsion Burnouts . | . . . Robots Hopped . | . . . Cave-ins Triggered . | . . . Exploration Rate (%) 28 | 6 57 23 Regions Visited 2 Branch Regions 1 Pre-discovered Areas . | . . . Known Exits Taken . | . . . Unknown Exits Taken 2 | 1 1 . Scrap Searched . | . . . Spaces Dug . | . . . Terrain Destroyed 88 | . 52 36 Melee . | . . . Projectile . | . . . AOE 88 | . 52 36 Terrain Rammed . | . . . Walls Destroyed . | . . . Machines Disabled . | . . . Actions | -11 -10 -10 --------- Run | Yrd Mat Min Total 692 | 54 525 113 Wait . | . . . Move 618 | 45 481 92 Hop . | . . . Pick Up 18 | 3 11 4 Fast Attach 7 | 4 3 . Attach 5 | 2 1 2 Detach 3 | . 2 1 Swap 1 | . 1 . Drop 4 | . 1 3 Fire 26 | . 16 10 Melee 1 | . . 1 Ram . | . . . Kick . | . . . Crush 9 | . 9 . Escape Stasis . | . . . Rewire . | . . . Trap . | . . . Miscellaneous . | . . . Route ------- -11/Scrapyard -10/Materials -10/Mines History --------- Turn | Location | Event 5 | -11/Scrapyard | Discovered new exit (range 16) 79 | -11/Scrapyard | Entered Materials 302 | -10/Materials | Build established: Mutant 1089 | -10/Materials | Discovered new exit (range 9) 1232 | -10/Materials | Entered Mines 1244 | -10/Mines | Destroyed 7 combat bots 1274 | -10/Mines | Core integrity fell below 50% 1452 | -10/Mines | Assembled infested the area 1470 | -10/Mines | Core integrity fell below 20% 1483 | -10/Mines | Destroyed by as-07791 with Assembled Heavy Rifle Last Messages --------------- exceed the object's Armor value. Inspect machines by right-clicking on them, and walls via Ctrl-RMB (or as any other object in keyboard mode). Hovering the cursor over an object also shows its Armor in the Scan window. 01452_ ALERT: Infestation in the mines, dispatching Demolisher response squad. 01463_ Destroyed Asb. F-torch. 01467_ as-77342 destroyed. 01469_ as-82017 destroyed. 01469_ as-75464 destroyed. 01469_ as-49022 destroyed. 01471_ as-48792 destroyed. 01471_ as-68496 destroyed. 01473_ Destroyed Asb. Hover Unit. 01475_ as-38744 destroyed. 01480_ as-05556 destroyed. 01480_ as-34341 destroyed. 01482_ Acquired 1 matter. Map ----- +----------------------------------------------------+ | | | | | | | | | | | | | | | | | | | ?????????????????????????????????????????????????? | | ????????????????????????????????????????????###??? | | ???????????????????????????????????????###### #### | | ??????????????????????????????????????## | | ???????????????????????????????####???#" ! | | ?????????????? ???????????????# #???#[![ | | ?????????????? ?????###?????? ????#![ ! | | ????????????? ##### ##???# ?????#" | | ????????????? ### #?????## | | ???????????? ???????## ## | | ???????????? #????????####### ## | | ???????????? ##?????????????# #? | | ??????????? aa % a ?############## #? | | ??????????????a % a #??# #? | | ?????????????????# #??# ############ ## | | ?????????????????# #???# #?########## | | ???????????????????## @ #???# ## | | ??????????????????## ##??# #???####### | | ??????????????????# #??# #?????????## | | ????????????????# #??# #??????????### | | ???????????????# #### #??# #????????????## | | ???????????????# ????# #??# #?????????????? | | ???????????????# ????# #### #?????????????? | | ???????????????# ?????# #?????????????? | | ??????????????# ?????########?????????????? | | ??????????????# ??????????????????????????? | | ??????????????# ???????????????????????????? | | ?????????????? ???????????????????????????? | | ??????????????? ????????????????????????????? | | ?????????????????? ????????????????????????????? | | ?????????????????????????????????????????????????? | | ?????????????????????????????????????????????????? | | ?????????????????????????????????????????????????? | | ?????????????????????????????????????????????????? | | ?????????????????????????????????????????????????? | | ?????????????????????????????????????????????????? | | ?????????????????????????????????????????????????? | | ?????????????????????????????????????????????????? | | ?????????????????????????????????????????????????? | | ?????????????????????????????????????????????????? | | ?????????????????????????????????????????????????? | +----------------------------------------------------+ Best States ------------- Heat Dissipation 25 Energy Generation 10 Energy Capacity 250 Matter Stores 300 Matter Capacity 300 Sight Range 16 Terrain Scan Density 85 Armor Coverage 150 Evasion (%) 40 Recoil Reduction 2 Item Schematics ----------------- None Robot Schematics ------------------ None Fabricated ------------ Nothing Alien Tech Used ----------------- None Achievements -------------- Shopping List Challenges ------------ None Game ------ Seed TerrainInsulatedInjector Manual? 0 Play Time 00:16:32 Cumulative 10.0 hours Start 2024.03.13 @ 12:57:36 End 2024.04.15 @ 11:06:18 Sessions 2 Manual Loads 0 Difficulty Rogue Special Mode None Game No. 14 Rogue 13 Adventurer 1 Explorer 0 Win Type - Total 0 Types 0/0/0/0/0/0/0/0/0 Lore% 8 Gallery% 12 Achievement% 14 Wizard Run 0 Options --------- Layout 1 ASCII 0 Keyboard 1 Movement Vi Keybinds 0 Fullscreen 2 Font 24/Smallcaps Map View 50x40 Zoom Use 0% Tactical HUD 1 Map Filters NONE Filters NONE Steam 1 RUN: fbf05bc9-d37f-4c43-8ae3-0207b68e0c73